Cogmind - Beta 15 @@@ ROGUE MODE // 2025.05.07 @ 14:37:56 Player: winnking222 Result: Destroyed by ZF-QUO(R) with Subdweller Laser Performance ------------- Evolutions (0) 0 Regions Visited (2) 400 Robots Destroyed (25) 125 Value Destroyed (785) 785 Prototype IDs (2) 40 Alien Tech Used (0) 0 Bonus (0) 0 TOTAL SCORE: 1350 Bonus ------- None Cogmind --------- Core Integrity 0/250 Matter 291/300 Energy 249/250 System Corruption 0% Temperature Cool (16) Movement Treading (240) Ox1 Location -10/Subcaves Parts ------- > --- POWER (1) -------- Ion Engine > --- PROPULSION (2) --- Improved Treads Improved Treads > --- UTILITY (2) ------ High-capacity Storage Unit Hardened Light Armor Plating > --- WEAPON (2) ------- Subdweller Beam Cannon Assault Rifle > --- INVENTORY (20) --- Medium Matter Pod (100) Subdweller Optics Targeting Computer Makeshift Kinetic Plating Beam Cannon Subdweller Beam Cannon Assault Rifle Assault Rifle Assault Rifle Subdweller Machine Gun Makeshift Axe Peak State ------------ > --- POWER ------------ Ion Engine > --- PROPULSION ------- Improved Treads Improved Treads > --- UTILITY ---------- High-capacity Storage Unit Hardened Light Armor Plating > --- WEAPON ----------- Subdweller Beam Cannon Makeshift Axe > --- INVENTORY -------- Improved Treads Medium Matter Pod Subdweller Optics Targeting Computer Beam Cannon Subdweller Beam Cannon Assault Rifle Assault Rifle Assault Rifle Assault Rifle Subdweller Machine Gun [Rating: 15] Favorites ----------- Power Ion Engine Engine Ion Engine Propulsion Improved Treads Treads Improved Treads Utility Hardened Light Armor Plating Storage High-capacity Storage Unit Processor Targeting Computer Protection Hardened Light Armor Plating Weapon Beam Cannon Energy Gun Particle Gun Energy Cannon Beam Cannon Ballistic Gun Assault Rifle Slashing Weapon Makeshift Axe Build | -11 -10 -10 ------- Run | Yrd Mat Sub Slots Evolved . | . . . Power . | . . . Propulsion . | . . . Utility . | . . . Weapon . | . . . Parts Attached 25 | 5 13 7 Power 2 | 1 1 . Engine 2 | 1 1 . Core . | . . . Reactor . | . . . Propulsion 6 | 2 2 2 Treads 6 | 2 2 2 Leg . | . . . Wheel . | . . . Hover . | . . . Flight . | . . . Utility 6 | 1 5 . Device . | . . . Storage 2 | 1 1 . Processor 1 | . 1 . Hackware . | . . . Protection 3 | . 3 . Artifact . | . . . Weapon 11 | 1 5 5 Energy Gun 3 | 1 2 . Energy Cannon 3 | . 1 2 Ballistic Gun 4 | . 2 2 Ballistic Cannon . | . . . Launcher . | . . . Special Weapon . | . . . Impact Weapon . | . . . Slashing Weapon 1 | . . 1 Piercing Weapon . | . . . Special Melee Weapon . | . . . Unidentified Prototypes . | . . . Parts Lost 5 | . 2 3 Power 1 | . 1 . Propulsion 2 | . . 2 Utility 1 | . . 1 Weapon 1 | . 1 . Highest Loss Streak 1 | . 1 1 To Critical Strikes . | . . . Average Backups 7 | 2 4 9 Power . | . . . Propulsion 1 | . . 1 Utility 2 | . 1 3 Weapon 3 | . . 5 Tool/Special . | . . . Unused Backups 8 | . 2 6 Power 1 | . 1 . Propulsion . | . . . Utility 5 | . 1 4 Weapon 2 | . . 2 Tool/Special . | . . . Average Slot Usage (%) 99 | . 97 99 Engine 13 | . 13 14 Treads 27 | . 28 27 Storage 13 | . 11 14 Processor 2 | . 6 . Protection 12 | . 8 14 Energy Gun 5 | . 16 . Energy Cannon 10 | . 2 15 Ballistic Gun 9 | . 8 9 Slashing Weapon 2 | . . 3 Peak Build Rating 15 | 5 12 15 Average Rating 11 | 3 8 12 On Entrance 5 | . 5 11 Naked Turns . | . . . Heaviest Build 66 | 12 55 66 Greatest Support 46 | 40 46 46 Greatest Overweight (x) 2 | 2 1 1 Average Overweight (x) . | . . 1 Largest Inventory Capacity 20 | 8 20 20 Average Capacity 16 | 7 9 20 Most Carried 12 | 5 8 12 Average Carried 7 | 2 4 9 Final Capacity 20 | 8 20 20 Final Carried 11 | 2 8 11 Class Distribution -------------------- 100% | Mutant Dominant Class ---------------- Mutant | -10/Materials Mutant | -10/Subcaves Resources | -11 -10 -10 ----------- Run | Yrd Mat Sub Matter Collected 676 | 250 192 234 Remotely . | . . . Salvage Created 999 | 82 333 584 Parts 52 | 3 22 27 Haulers Intercepted 1 | . 1 . Recyclers Shooed 1 | . 1 . Parts Field Recycled . | . . . Retrieved Matter . | . . . Parts Self-Destructed 24 | . . 24 Prevented . | . . . Kills | -11 -10 -10 ------- Run | Yrd Mat Sub Combat Hostiles Destroyed 21 | . 7 14 Guns 10 | . 7 3 Cannons 11 | . . 11 Classes Destroyed 8 | 1 5 2 Hauler 1 | . 1 . Recycler 1 | 1 . . Operator 1 | . 1 . Watcher 1 | . 1 . Swarmer 3 | . 1 2 Grunt 6 | . 6 . Sentry 1 | . . 1 Subdweller 11 | . . 11 Best Kill Streak 3 | 1 3 2 Combat Bots Only 3 | . 3 2 Max Kills in Single Turn 2 | 1 2 1 Gunslinging 1 | . 1 . Exploded . | . . . Melee . | . . . Uniques/NPCs Destroyed . | . . . Combat | -11 -10 -10 -------- Run | Yrd Mat Sub Hostile Shots Fired 141 | . 60 81 Missed 42 | . 13 29 Hits 99 | . 47 52 Projectile 99 | . 47 52 AOE 5 | . . 5 Critical Strikes 3 | . 1 2 Damage Taken 1633 | . 546 1087 Core 266 | . 63 203 Absorbed by Shields . | . . . Core Remaining (%) 100 | 100 . . Volleys Fired 97 | 3 35 59 Largest 2 | 1 2 2 Hottest 160 | 40 105 160 Shots Fired 175 | 3 70 102 Gun 110 | 3 69 38 Cannon 65 | . 1 64 Launcher . | . . . Special . | . . . Kinetic 56 | . 18 38 Thermal 110 | . 46 64 Explosive . | . . . Electromagnetic 9 | 3 6 . Robot Hit Streak 11 | 3 7 11 Robot Miss Streak 6 | . 6 3 Penetration Max . | . . . Secondary Targets 1 | . 1 . Max Gunslinging Chain 1 | . 1 . Shots Hit Robots 96 | 3 41 52 Core Hits 38 | 2 18 18 Critical Kills . | . . . Critical Parts Destroyed . | . . . Critical Strikes 2 | . 2 . Burn 2 | . 2 . Melee Attacks 12 | . . 12 Impact . | . . . Slashing 12 | . . 12 Piercing . | . . . Sneak Attacks . | . . . Combat Hostiles . | . . . Follow-up Attacks . | . . . Damage Inflicted 1569 | 43 515 1011 Guns 794 | 43 480 271 Cannons 757 | . 17 740 Explosions . | . . . Melee . | . . . Ramming 18 | . 18 . Kinetic 355 | . 84 271 Thermal 1102 | . 362 740 Explosive . | . . . Electromagnetic 94 | 43 51 . Impact . | . . . Slashing . | . . . Piercing . | . . . Highest Corruption . | . . . Average Corruption . | . . . Corruption Purged . | . . . Corruption Blocked . | . . . Overload Shots . | . . . Overflow Damage 9 | . . 9 Projectiles 9 | . . 9 Explosions . | . . . Melee . | . . . Knockbacks . | . . . Impact . | . . . Kinetic . | . . . Secondary . | . . . Self-Inflicted Damage . | . . . Shots . | . . . Rammed 4 | . 4 . Targets Rammed 4 | . 4 . Kicked . | . . . Crushed . | . . . Highest Temperature 372 | . 372 234 Average Temperature 95 | . 114 45 Received Heat Transfer 686 | . 282 404 Effects 6 | . 6 . Interference 5 | . 5 . Short Circuit 1 | . 1 . Siege Activations . | . . . Martial Activations . | . . . Shielding Activations . | . . . Robots Disrupted . | . . . Combat Hostiles . | . . . Robots Corrupted . | . . . Combat Hostiles . | . . . Parts Fried . | . . . Impact Corruptions . | . . . Robots Melted . | . . . Combat Hostiles . | . . . Parts Melted 3 | . 1 2 Heat Transferred 2199 | . 978 1221 Parts Sabotaged . | . . . Parts Stolen . | . . . Parts Stripped . | . . . Power Chain Reactions . | . . . Alert | -11 -10 -10 ------- Run | Yrd Mat Sub Maximum Alert Level . | . . . Low Security (%) 100 | 100 100 . Level 1 . | . . . Level 2 . | . . . Level 3 . | . . . Level 4 . | . . . Level 5 . | . . . High Security . | . . . Max Security . | . . . Peak Influence 60 | 5 60 . Initial . | . . . Average 11 | . 11 . Influence Increases 383 | 5 258 120 Destroy 0b10 Robot/C 200 | . 140 60 Destroy 0b10 Robot/NC 20 | 5 15 . Destroy Leader 34 | . 34 . Successful Hack 9 | . 9 . Partial Spotted 15 | . 15 . Lose Combat Pursuer 105 | . 45 60 Influence Decreases 346 | 5 258 83 Time Decay 336 | 5 258 73 Lost Part 10 | . . 10 Squads Dispatched 1 | . 1 . Investigation 1 | . 1 . Extermination . | . . . Reinforcement . | . . . Assault . | . . . Garrison . | . . . Intercept . | . . . Searches Triggered . | . . . Construction Impeded . | . . . Haulers Reinforced . | . . . Active Scanning Responses . | . . . Cargo Convoy Interrupts . | . . . Stealth | -11 -10 -10 --------- Run | Yrd Mat Sub Distress Signals 1 | . 1 . Communications Jammed . | . . . Distress Signals . | . . . Times Spotted 36 | . 17 19 Peak Tracking Total 5 | . 4 5 Tactical Retreats 3 | . 2 1 Traps | -11 -10 -10 ------- Run | Yrd Mat Sub Traps Triggered . | . . . Indirectly . | . . . Trap Hack Attempts . | . . . Triggered . | . . . Disarmed . | . . . Reprogrammed . | . . . Reused . | . . . Traps Extracted . | . . . Installed . | . . . Triggered . | . . . Machines | -11 -10 -10 ---------- Run | Yrd Mat Sub Machines Disabled . | . . . Max in Single Turn . | . . . Machines Repaired . | . . . Machines Dismantled . | . . . Machines Sabotaged . | . . . Overloaded Fab Kills . | . . . Hacking | -11 -10 -10 --------- Run | Yrd Mat Sub Machines Accessed 7 | . 6 1 Terminals 6 | . 6 . Fabricators . | . . . Repair Stations . | . . . Recycling Units . | . . . Scanalyzers . | . . . Garrison Access . | . . . Total Hacks 19 | . 14 5 Successful 10 | . 5 5 Failed 9 | . 9 . Catastrophic . | . . . Database Lockouts . | . . . Manual . | . . . Terminals 14 | . 14 . Fabricators . | . . . Repair Stations . | . . . Recycling Units . | . . . Scanalyzers . | . . . Garrison Access . | . . . Terminal Hacks 10 | . 5 5 Record 5 | . . 5 Prototype ID Bank 1 | . 1 . Emergency Access Points 2 | . 2 . Locate Traps 1 | . 1 . Hauler Manifests 1 | . 1 . Fabricator Hacks . | . . . Repair Station Hacks . | . . . Recycling Unit Hacks . | . . . Scanalyzer . | . . . Garrison Access Hacks . | . . . Unauthorized Hacks . | . . . Terminals . | . . . Fabricators . | . . . Repair Stations . | . . . Recycling Units . | . . . Scanalyzers . | . . . Garrison Access . | . . . Data Cores Recovered . | . . . Used . | . . . Hacking Detections 4 | . 4 . Full Trace Events 1 | . 1 . Feedback Events . | . . . Feedback Blocked . | . . . Robot Schematics Acquired . | . . . Robots Built . | . . . Authchips . | . . . Time . | . . . Total Robot Build Rating . | . . . Part Schematics Acquired . | . . . Parts Built . | . . . Authchips . | . . . Time . | . . . Total Part Build Rating . | . . . Parts Repaired . | . . . Time . | . . . Parts Recycled . | . . . Recycled Matter . | . . . Retrieved Matter . | . . . Retrieved Components . | . . . Parts Scanalyzed . | . . . Part Schematics Acquired . | . . . Parts Damaged . | . . . Bothacking | -11 -10 -10 ------------ Run | Yrd Mat Sub Used RIF Installer . | . . . Robots Hacked . | . . . Non-combat . | . . . Combat . | . . . Robot Hacks Applied . | . . . Relay Couplers Released . | . . . Fabnet Peak Effective % . | . . . Robots Rewired . | . . . Allies Hacked . | . . . Hacks Repelled . | . . . Allies | -11 -10 -10 -------- Run | Yrd Mat Sub Total Allies . | . . . Largest Group . | . . . Highest-Rated Group . | . . . Highest-Rated Ally . | . . . Total Orders . | . . . Ally Attacks . | . . . Total Damage . | . . . Kills . | . . . Allies Corrupted . | . . . Allies Melted . | . . . Intel | -11 -10 -10 ------- Run | Yrd Mat Sub Active Infowar (turns) . | . . . Robot Analysis Total . | . . . Derelict Logs Recovered . | . . . Drone Launches . | . . . Drone Recoveries . | . . . Exploration | -11 -10 -10 ------------- Run | Yrd Mat Sub Turns Passed 3559 | 54 1199 2306 Spaces Moved 1497 | 31 605 861 Core 11 | 11 . . Treads 1486 | 20 605 861 Legs . | . . . Wheels . | . . . Hover . | . . . Flight . | . . . Fastest Speed 50 | 50 160 240 Average Speed 208 | 124 169 240 Slowest Speed 240 | 160 240 240 Overloaded Moves . | . . . Propulsion Burnouts . | . . . Robots Hopped . | . . . Potential Cave-ins . | . . . Cave-ins Triggered . | . . . Exploration Rate (%) 52 | 4 92 61 Regions Visited 2 Branch Regions 1 Pre-discovered Areas 2 | . . 2 Known Exits Taken . | . . . Unknown Exits Taken 2 | 1 1 . Scrap Searched . | . . . Spaces Dug 3 | . . 3 Terrain Destroyed 7 | . . 7 Melee 3 | . . 3 Projectile 4 | . . 4 AOE . | . . . Terrain Rammed . | . . . Walls Destroyed . | . . . Machines Disabled . | . . . Actions | -11 -10 -10 --------- Run | Yrd Mat Sub Total 1737 | 43 713 981 Wait 64 | . 32 32 Move 1495 | 30 604 861 Hop . | . . . Pick Up 27 | 5 16 6 Fast Attach 3 | 2 1 . Attach 10 | 3 4 3 Detach . | . . . Swap 17 | . 9 8 Drop 8 | . 8 . Fire 97 | 3 35 59 Melee 12 | . . 12 Ram . | . . . Kick . | . . . Crush 4 | . 4 . Escape Stasis . | . . . Rewire . | . . . Trap . | . . . Miscellaneous . | . . . Route ------- -11/Scrapyard -10/Materials (discovered 6 exits: [*Mat x3] / [*Min x2] / *Sub) -10/Subcaves (discovered 2 exits: [*Mat] / [*Rec]) History --------- Turn | Location | Event 12 | -11/Scrapyard | Discovered new exit (range 16) 55 | -11/Scrapyard | Entered Materials 221 | -10/Materials | Discovered new exit (range 10) 253 | -10/Materials | Discovered new exit (range 8) 313 | -10/Materials | Build established: Mutant 349 | -10/Materials | Discovered new exit (range 15) 508 | -10/Materials | Discovered new exit (range 3) 720 | -10/Materials | Discovered new exit (range 4) 894 | -10/Materials | Discovered new exit (range 10) 1254 | -10/Materials | Entered Subcaves 1255 | -10/Subcaves | Approached by a straggling Scientist 1495 | -10/Subcaves | Learned location of Zion (-7) 1495 | -10/Subcaves | Met a Zionite searching for "candidates" 1583 | -10/Subcaves | Visited Clippyterm 1590 | -10/Subcaves | Learned Factory emergency access door positions 1590 | -10/Subcaves | Learned location of Extension (-4) 1861 | -10/Subcaves | Core integrity fell below 50% 1863 | -10/Subcaves | Ambushed by Subdweller buried in earth 2038 | -10/Subcaves | Discovered new exit (range 10) 2388 | -10/Subcaves | Shifting Twisted Machinery released Mak. Axe 2609 | -10/Subcaves | Shifting Twisted Machinery released Sub. Beam Cannon 2923 | -10/Subcaves | A swath of the cavern ceiling suddenly collapsed 3093 | -10/Subcaves | Discovered new exit (range 15) 3096 | -10/Subcaves | Core integrity fell below 20% 3181 | -10/Subcaves | Shifting Twisted Machinery released Piercing Trap 3202 | -10/Subcaves | Shifting Twisted Machinery released Mak. Kinetic Plating 3560 | -10/Subcaves | Destroyed by ZF-QUO(R) with Subdweller Laser Last Messages --------------- 03116_ Lgt. Assault Rifle fries itself beyond repair. 03118_ Flight Unit fries itself beyond repair. 03151_ 19-8RE(u) builds Twisted Machinery. Piercing Trap falls loose from the Twisted Machinery. Mak. Kinetic Plating falls loose from the Twisted Machinery. 03213_ Acquired Mak. Kinetic Plating. 03284_ NG-03D(R) destroyed. 03285_ Subatomizers dissect the Sub. Monowheel. 03287_ Acquired 42 matter. 03292_ Sub. Beam Cannon shoots sparks and powers down. 03303_ Sub. Power Source melted. 03303_ 4X-E0X(R) destroyed. 03326_ Subatomizers dissect the Sub. Monowheel. 03332_ Acquired 10 matter. 03337_ Subatomizers dissect the Sub. Monowheel. 03477_ Imp. Treads destroyed. 03478_ KY-JNX(R) destroyed. 03485_ Acquired 13 matter. 03544_ 03-E4D(R): "ECOKILL!" 03558_ 03-E4D(R) destroyed. Map ----- +----------------------------------------------------+ | " ""???????????? ???????????????????????????????? | | "????????????????????????????????????????????????? | | ? ???????????????????????????????????????????????? | | ?????????????????????????????????????????????????? | | ?????????????????????????????????????????????????? | | ?????????????????????????????????????????????????? | | ?????????????????????????????????????????????????? | | ?????????????????????????????????????????????????? | | ?????????????????????????????????????????????????? | | ????????????????????????? #?????????????????????? | | ????????????????????????# #?????????????????????? | | ???????????????????????? #?????????????????????? | | ???????????????????????? ###???????????????????? | | ????????????????????????# ##??????????????????? | | ???????????????????????## #??????????????????? | | ?????????????????????### #???????????????????? | | ?????????????????????# #????????????????????? | | ????????###????#####?# """ #??##?##?????????????? | | ?######## ###### ###""" #? # ??????????????? | | ## ## "" """""" "##" ?????????????? | | # " # """" " " ?????????????? | | =% ## " " " " #????????????????? | | ### ! ## ## """ #????????????????? | | #?## ## ####### R ##????????????????? | | #??## # ##?#### =%## ##?????????????????? | | ##??# #?# @## ##??????????????????? | | #??# ## #### #?#???????????????????? | | ####??# #####?# ####?????????????????????? | | ##?##### ##?????## ##????????????????????????? | | #??# #???????#####?????????????????????????? | | #?# ##?????????????????????????????????????? | | #?# #??????????????????????????????????????? | | ## #??????????????????????????????????????? | | ##########??????????????????????????????????????? | | ##???????????????????????????????????????????????? | | #????????????????????????????????????????????????? | | ?????????????????????????????????????????????????? | | ?????????????????????????????????????????????????? | | ?????????????????????????????????????????????????? | | ?????????????????????????????????????????????????? | | ?????????????????????????????????????????????????? | | ?????????????????????????????????????????????????? | | ?????????????????????????????????????????????????? | | ?????????????????????????????????????????????????? | | ?????????????????????????????????????????????????? | | ?????????????????????????????????????????????????? | | ?????????????????????????????????????????????????? | | ?????????????????????????????????????????????????? | | ?????????????????????????????????????????????????? | | ?????????????????????????????????????????????????? | +----------------------------------------------------+ Best States ------------- Heat Dissipation 25 Energy Generation 10 Energy Capacity 250 Matter Stores 300 Matter Capacity 300 Sight Range 16 Terrain Scan Density 10 Armor Coverage 300 Evasion (%) 50 Targeting Accuracy 5 Recoil Reduction 2 Item Schematics ----------------- None Robot Schematics ------------------ None Fabricated ------------ Nothing Repaired ---------- Nothing Alien Tech Used ----------------- None Achievements -------------- None Challenges ------------ None Game ------ Seed GreatBraceBattery Manual? 0 Play Time 00:21:09 Cumulative 62.0 hours Start 2025.05.07 @ 14:16:23 End 2025.05.07 @ 14:37:56 Sessions 3 Manual Loads 0 Difficulty Rogue Special Mode None Game No. 113 Rogue 113 Adventurer 0 Explorer 0 Win Type - Total 1 Types 1/0/0/0/0/0/0/0/0/0 Lore% 50 Gallery% 43 Achievement% 40 Wizard Run 0 Options --------- Layout 0 ASCII 0 Keyboard 0 Movement Mouse Keybinds 0 Fullscreen 1 Font 16/SmallcapsGlow Map View 75x55 Zoom Use 0% Tactical HUD 1 Map Filters NONE Filters NONE Steam 1 RUN: 396215c2-dcaf-4bf3-88dc-8c7c770d4bab